fUST/lending_fUST_20250516
["ID","MTS","AMOUNT","RATE_DAILY","PERIOD"]
[361238383,1747386640505,-500.0,0.00012898,2]
[361238385,1747386640518,-500.0,0.00012898,2]
[361238388,1747386640530,-500.0,0.00012898,2]
[361238390,1747386640541,-500.0,0.00012898,2]
[361238392,1747386640553,-500.0,0.00012898,2]
[361238394,1747386640563,-500.0,0.00012898,2]
[361238396,1747386640574,-500.0,0.00012898,2]
[361238398,1747386640584,-500.0,0.00012898,2]
[361238401,1747386640595,-500.0,0.00012898,2]
[361238403,1747386640606,-500.0,0.00012898,2]
[361238405,1747386640617,-500.0,0.00012898,2]
[361238407,1747386640628,-500.0,0.00012898,2]
[361238409,1747386640640,-500.0,0.00012898,2]
[361238411,1747386640651,-500.0,0.00012898,2]
[361238413,1747386640662,-404.0,0.00013577,2]
[361238416,1747386640674,-500.0,0.00013699,2]
[361238418,1747386640685,-500.0,0.00013699,2]
[361238420,1747386640696,-500.0,0.00013699,2]
[361238422,1747386640707,-500.0,0.00013699,2]
[361238424,1747386640719,-500.0,0.00013699,2]
[361238427,1747386640730,-500.0,0.00013699,2]
[361238429,1747386640741,-500.0,0.00013699,2]
[361238431,1747386640751,-500.0,0.00013699,2]
[361238433,1747386640762,-500.0,0.00013699,2]
[361238435,1747386640773,-500.0,0.00013699,2]
[361238438,1747386640785,-631.27084611,0.00013699,2]
[361238440,1747386640795,-500.0,0.00013699,2]
[361238442,1747386640806,-500.0,0.00013699,2]
[361238444,1747386640817,-500.0,0.00013699,2]
[361238447,1747386640827,-500.0,0.00013699,2]
[361238449,1747386640838,-500.0,0.00013699,2]
[361238451,1747386640850,-500.0,0.00013699,2]
[361238453,1747386640861,-500.0,0.00013699,2]
[361238455,1747386640872,-500.0,0.00013699,2]
[361238458,1747386640884,-500.0,0.00013699,2]
[361238460,1747386640895,-500.0,0.00013699,2]
[361238462,1747386640906,-500.0,0.00013699,2]
[361238464,1747386640918,-500.0,0.00013699,2]
[361238466,1747386640929,-8072.50258606,0.00014038,2]
[361238469,1747386640943,-3018.15919792,0.00014038,2]
[361238471,1747386640954,-151.0,0.00014038,2]
[361238473,1747386640964,-151.0,0.00014038,2]
[361238475,1747386640975,-711.0,0.00014038,2]
[361238477,1747386640986,-711.0,0.00014038,2]
[361238480,1747386640997,-711.0,0.00014038,2]
[361238481,1747386641008,-711.0,0.00014038,2]
[361238482,1747386641019,-444.58900548,0.00014038,2]
[361238483,1747386641040,-266.41099452,0.00014038,2]
[361238484,1747386641051,-151.0,0.00014038,2]
[361238485,1747386641061,-113.69631282,0.00014038,2]
[361238486,1747386641074,-246.89303524,0.00014038,2]
[361238487,1747386641085,-430.2075003,0.00014038,2]
[361238545,1747386641715,-119.51697809,0.00014038,2]
[361238722,1747386643510,-161.27552161,0.00014038,2]
[361238724,1747386643520,-711.0,0.00014038,2]
[361238726,1747386643530,-711.0,0.00014038,2]
[361238728,1747386643539,-711.0,0.00014038,2]
[361238730,1747386643548,-711.0,0.00014038,2]
[361238732,1747386643559,-711.0,0.00014038,2]
[361238734,1747386643568,-711.0,0.00014038,2]
[361238737,1747386643585,-711.0,0.00014038,2]
[361238739,1747386643595,-711.0,0.00014038,2]
[361238741,1747386643604,-711.0,0.00014038,2]
[361238743,1747386643614,-711.0,0.00014038,2]
[361238745,1747386643624,-711.0,0.00014038,2]
[361238748,1747386643633,-711.0,0.00014038,2]
[361238750,1747386643643,-711.0,0.00014038,2]
[361238752,1747386643653,-711.0,0.00014038,2]
[361238754,1747386643662,-711.0,0.00014038,2]
[361238756,1747386643670,-711.0,0.00014038,2]
[361238758,1747386643680,-321.0,0.00014038,2]
[361238760,1747386643690,-321.0,0.00014038,2]
[361238763,1747386643700,-711.0,0.00014038,2]
[361238765,1747386643709,-321.0,0.00014038,2]
[361238769,1747386643719,-711.0,0.00014038,2]
[361238772,1747386643728,-321.0,0.00014038,2]
[361238775,1747386643737,-711.0,0.00014038,2]
[361238777,1747386643747,-711.0,0.00014038,2]
[361238779,1747386643757,-321.0,0.00014038,2]
[361238780,1747386643766,-711.0,0.00014038,2]
[361238782,1747386643776,-711.0,0.00014038,2]
[361238785,1747386643785,-711.0,0.00014038,2]
[361238786,1747386643795,-711.0,0.00014038,2]
[361238788,1747386643804,-501.133,0.00014038,2]
[361238790,1747386643814,-378.75372864,0.00014054,2]
[361238793,1747386643823,-151.0,0.00014109,2]
[361238794,1747386643833,-151.0,0.00014109,2]
[361238796,1747386643842,-450.0,0.00014109,2]
[361238798,1747386643851,-450.0,0.00014109,2]
[361238800,1747386643861,-450.0,0.00014109,2]
[361238802,1747386643870,-1198.62,0.00014109,2]
[361238804,1747386643879,-450.0,0.00014109,2]
[361238806,1747386643889,-450.0,0.00014109,2]
[361238808,1747386643898,-501.3,0.00014109,2]
[361238811,1747386643908,-618.05,0.00014109,2]
[361238813,1747386643917,-450.0,0.00014109,2]
[361238815,1747386643927,-450.0,0.00014109,2]
[361238817,1747386643936,-450.0,0.00014109,2]
[361238818,1747386643947,-450.0,0.00014109,2]
[361238820,1747386643956,-515.18,0.00014109,2]
[361238822,1747386643966,-450.0,0.00014109,2]
[361238824,1747386643975,-450.0,0.00014109,2]
[361238826,1747386643984,-450.0,0.00014109,2]
[361238828,1747386643994,-450.0,0.00014109,2]
[361238830,1747386644003,-450.0,0.00014109,2]
[361238832,1747386644012,-450.0,0.00014109,2]
[361238834,1747386644021,-835.1,0.00014109,2]
[361238836,1747386644030,-450.0,0.00014109,2]
[361238838,1747386644040,-503.97,0.00014109,2]
[361238840,1747386644049,-450.0,0.00014109,2]
[361238842,1747386644058,-450.0,0.00014109,2]
[361238844,1747386644067,-958.69,0.00014109,2]
[361238846,1747386644076,-1818.67,0.00014109,2]
[361238848,1747386644086,-450.0,0.00014109,2]
[361238850,1747386644095,-450.0,0.00014109,2]
[361238852,1747386644104,-450.0,0.00014109,2]
[361238854,1747386644114,-450.0,0.00014109,2]
[361238856,1747386644123,-450.0,0.00014109,2]
[361238858,1747386644133,-450.0,0.00014109,2]
[361238860,1747386644142,-450.0,0.00014109,2]
[361238862,1747386644151,-396.43412401,0.00014109,2]
[361238864,1747386644163,-212.60587599,0.00014109,2]
[361238866,1747386644173,-1718.49412402,0.00014109,2]
[361238869,1747386644184,-125.39587598,0.00014109,2]
[361238871,1747386644194,-915.63,0.00014109,2]
[361238873,1747386644203,-1072.1,0.00014109,2]
[361238875,1747386644212,-900.15,0.00014109,2]
[361238877,1747386644222,-807.18,0.00014109,2]
[361238878,1747386644231,-450.0,0.00014109,2]
[361238880,1747386644241,-1856.18,0.00014109,2]
[361238882,1747386644250,-450.0,0.00014109,2]
[361238884,1747386644261,-1228.02,0.00014109,2]
[361238886,1747386644270,-450.0,0.00014109,2]
[361238888,1747386644280,-1051.14,0.00014109,2]
[361238890,1747386644289,-450.0,0.00014109,2]
[361238892,1747386644299,-1018.05,0.00014109,2]
[361238894,1747386644309,-450.0,0.00014109,2]
[361238896,1747386644319,-521.33,0.00014109,2]
[361238898,1747386644328,-1008.1,0.00014109,2]
[361238900,1747386644337,-536.04,0.00014109,2]
[361238902,1747386644347,-4338.11,0.00014109,2]
[361238904,1747386644356,-2951.78,0.00014109,2]
[361238906,1747386644365,-450.0,0.00014109,2]
[361238908,1747386644375,-450.0,0.00014109,2]
[361238910,1747386644384,-1640.24160582,0.00014109,2]
[361239133,1747386646668,-3787.97839418,0.00014109,2]
[361239135,1747386646678,-450.0,0.00014109,2]
[361239137,1747386646688,-998.12,0.00014109,2]
[361239139,1747386646698,-450.0,0.00014109,2]
[361239141,1747386646707,-450.0,0.00014109,2]
[361239143,1747386646718,-1248.32,0.00014109,2]
[361239146,1747386646727,-1224.62917162,0.00014109,2]
[361241933,1747387636287,-423.1303243,0.00011392,2]
[361241934,1747387642008,-235.78575013,0.00011392,2]
[361241935,1747387643717,-162.30645893,0.00011392,2]
[361241936,1747387647143,-229.90412252,0.00011392,2]
[361241937,1747387649324,-210.27881232,0.00011392,2]
[361241938,1747387651485,-292.48014679,0.00011392,2]
[361241939,1747387654221,-394.64866672,0.00011392,2]
[361241940,1747387656401,-327.5457519,0.00011392,2]
[361241941,1747387660081,-170.5166775,0.00011392,2]
[361241942,1747387663539,-455.46555164,0.00011392,2]
[361241943,1747387666863,-170.07335641,0.00011392,2]
[361241944,1747387668315,-290.70444987,0.00011392,2]
[361241945,1747387671579,-203.55172513,0.00011392,2]
[361241946,1747387674201,-196.47763723,0.00011392,2]
[361241947,1747387675761,-155.26618777,0.00011392,2]
[361241948,1747387677327,-189.0,0.00011392,2]
[361241949,1747387678953,-333.1051772,0.00011392,2]
[361241950,1747387680549,-165.8948228,0.00011392,2]
[361241951,1747387683576,-166.94641052,0.00011392,2]
[361241952,1747387685821,-226.91797032,0.00011392,2]
[361241963,1747387788194,-181.0,0.00011278,2]
[361241964,1747387790396,-208.71843324,0.00011278,2]
[361241965,1747387791316,807.702411,0.00027397,120]
[361241966,1747387793615,-223.5143695,0.00011278,2]
[361241968,1747387797154,-239.19050477,0.00011278,2]
[361241969,1747387798736,-215.51499047,0.00011278,2]
[361241970,1747387800374,-165.48684912,0.00011278,2]
[361241971,1747387802642,-200.02633474,0.00011278,2]
[361241972,1747387804123,-191.76733118,0.00011278,2]
[361241973,1747387805710,-189.06289489,0.00011278,2]
[361241974,1747387808622,-206.76423893,0.00011278,2]
[361241975,1747387811441,-210.47024841,0.00011278,2]
[361241976,1747387814121,-173.09707958,0.00011278,2]
[361241977,1747387816965,-206.21698277,0.00011278,2]
[361241978,1747387819824,-300.0,0.00011278,2]
[361241979,1747387824772,-303.41701588,0.00011278,2]
[361241980,1747387826496,-155.0,0.00011278,2]
[361241981,1747387829182,-175.45118724,0.00011278,2]
[361241982,1747387830735,-421.5458782,0.00011278,2]
[361241992,1747387832228,-164.83253891,0.00011278,2]
[361242020,1747387832586,-868.92312217,0.00011278,2]
[361242022,1747387832596,-201.97616761,0.00011391,2]
[361242058,1747387838556,-98.02383239,0.00011391,2]
[361242060,1747387838566,-300.0,0.00011391,2]
[361242061,1747387838575,-1290.33480353,0.00011392,2]
[361242089,1747387840922,-3709.66519647,0.00011392,2]
[361242091,1747387840932,-24082.9576462,0.00011392,2]
[361242093,1747387840942,-156.5,0.00012,2]
[361242095,1747387840953,-1000.0,0.00012,2]
[361242097,1747387840963,-420.0,0.00012512,2]
[361242099,1747387840973,-420.0,0.00012512,2]
[361242101,1747387840984,-597.1091882,0.00012834,2]
[361242103,1747387840994,-5618.7419066,0.00013,2]
[361242105,1747387841003,-1000.0,0.00013,2]
[361242107,1747387841013,-152.0,0.00013501,2]
[361242109,1747387841023,-643.35442044,0.00013537,2]
[361242111,1747387841033,-546.0,0.00013579,2]
[361242113,1747387841043,-643.35442044,0.00013587,2]
[361242115,1747387841053,-175.8374533,0.000136,2]
[361242117,1747387841063,-175.8374533,0.000136,2]
[361242119,1747387841073,-175.8374533,0.000136,2]
[361242121,1747387841083,-160.6016267,0.000136,2]
[361242123,1747387841093,-500.0,0.00013604,2]
[361242125,1747387841102,-500.0,0.00013604,2]
[361242127,1747387841111,-500.0,0.00013604,2]
[361242129,1747387841121,-500.0,0.00013604,2]
[361242131,1747387841131,-491.55498854,0.00013604,2]
[361242133,1747387841140,-500.0,0.00013604,2]
[361242135,1747387841150,-228.90421741,0.00013604,2]
[361242137,1747387841159,-500.0,0.00013604,2]
[361242139,1747387841169,-500.0,0.00013604,2]
[361242141,1747387841179,-500.0,0.00013604,2]
[361242143,1747387841189,-500.0,0.00013604,2]
[361242145,1747387841199,-500.0,0.00013604,2]
[361242147,1747387841208,-500.0,0.00013604,2]
[361242149,1747387841218,-500.0,0.00013604,2]
[361242151,1747387841227,-500.0,0.00013604,2]
[361242153,1747387841237,-185.64739738,0.00013604,2]
[361242155,1747387841246,-500.0,0.00013604,2]
[361242157,1747387841256,-482.9912,0.00013604,2]
[361242159,1747387841265,-500.0,0.00013604,2]
[361242161,1747387841275,-500.0,0.00013604,2]
[361242163,1747387841284,-500.0,0.00013604,2]
[361242165,1747387841294,-500.0,0.00013604,2]
[361242167,1747387841303,-500.0,0.00013604,2]
[361242169,1747387841312,-500.0,0.00013604,2]
[361242170,1747387841323,-500.0,0.00013604,2]
[361242171,1747387841332,-500.0,0.00013604,2]
[361242172,1747387841342,-500.0,0.00013604,2]
[361242173,1747387841352,-500.0,0.00013604,2]
[361242174,1747387841361,-500.0,0.00013604,2]
[361242175,1747387841375,-500.0,0.00013604,2]
[361242176,1747387841385,-500.0,0.00013604,2]
[361242178,1747387841395,-500.0,0.00013604,2]
[361242180,1747387841404,-500.0,0.00013604,2]
[361242182,1747387841414,-500.0,0.00013604,2]
[361242184,1747387841424,-206.42488413,0.00013604,2]
[361242186,1747387841433,-500.0,0.00013604,2]
[361242188,1747387841443,-500.0,0.00013604,2]
[361242190,1747387841452,-500.0,0.00013604,2]
[361242192,1747387841462,-35231.83414871,0.00013605,2]
[361242194,1747387841471,-643.35442044,0.00013636,2]
[361242196,1747387841482,-160.0,0.00013636,2]
[361242198,1747387841491,-160.0,0.00013636,2]
[361242200,1747387841500,-160.0,0.00013636,2]
[361242202,1747387841509,-998.24360331,0.00013636,2]
[361242204,1747387841518,-12631.88158148,0.00013637,2]
[361242206,1747387841528,-422.39640784,0.00013637,2]
[361242208,1747387841537,-160.0,0.00013637,2]
[361242210,1747387841547,-160.0,0.00013637,2]
[361242212,1747387841556,-160.0,0.00013637,2]
[361242214,1747387841566,-500.0,0.00013673,2]
[361242216,1747387841575,-512.24827771,0.00013673,2]
[361242218,1747387841584,-500.0,0.00013673,2]
[361242220,1747387841594,-500.0,0.00013673,2]
[361242222,1747387841603,-500.0,0.00013673,2]
[361242224,1747387841612,-500.0,0.00013673,2]
[361242226,1747387841622,-500.0,0.00013673,2]
[361242228,1747387841631,-500.0,0.00013673,2]
[361242230,1747387841641,-438.52495684,0.00013673,2]
[361242233,1747387841650,-500.0,0.00013673,2]
[361242235,1747387841660,-500.0,0.00013673,2]
[361242237,1747387841670,-500.0,0.00013673,2]
[361242239,1747387841681,-500.0,0.00013673,2]
[361242241,1747387841692,-427.41539102,0.00013673,2]
[361242243,1747387841700,-501.95975239,0.00013673,2]
[361242245,1747387841710,-500.0,0.00013673,2]
[361242247,1747387841719,-500.0,0.00013673,2]
[361242249,1747387841729,-500.0,0.00013673,2]
[361242250,1747387841738,-500.0,0.00013673,2]
[361242253,1747387841747,-407.67132712,0.00013673,2]
[361242255,1747387841756,-500.0,0.00013673,2]
[361242257,1747387841766,-500.0,0.00013673,2]
[361242259,1747387841779,-500.0,0.00013673,2]
[361242261,1747387841789,-500.0,0.00013673,2]
[361242263,1747387841798,-643.35442044,0.00013686,2]
[361242265,1747387841807,-207.4,0.0001369,2]
[361242267,1747387841818,-500.0,0.00013696,2]
[361242269,1747387841828,-500.0,0.00013696,2]
[361242271,1747387841839,-500.0,0.00013696,2]
[361242273,1747387841851,-500.0,0.00013696,2]
[361242275,1747387841862,-500.0,0.00013696,2]
[361242277,1747387841873,-298.59773181,0.00013696,2]
[361242279,1747387841883,-500.0,0.00013696,2]
[361242281,1747387841893,-500.0,0.00013696,2]
[361242283,1747387841903,-500.0,0.00013696,2]
[361242310,1747387842140,-500.0,0.00013696,2]
[361242312,1747387842150,-289.9652071,0.00013696,2]
[361242314,1747387842159,-400.0,0.00013698,2]
[361242316,1747387842168,-428.63117572,0.00013698,2]
[361242318,1747387842177,-178.83160997,0.00013698,2]
[361242320,1747387842186,-408.1724109,0.00013698,2]
[361242322,1747387842196,-400.0,0.00013698,2]
[361242324,1747387842205,-400.0,0.00013698,2]
[361242326,1747387842214,-421.80671604,0.00013698,2]
[361242328,1747387842223,-400.0,0.00013698,2]
[361242330,1747387842232,-400.0,0.00013698,2]
[361242332,1747387842241,-400.0,0.00013698,2]
[361242334,1747387842250,-400.0,0.00013698,2]
[361242337,1747387842261,-400.0,0.00013698,2]
[361242339,1747387842271,-545.82,0.00013698,2]
[361242341,1747387842279,-400.0,0.00013698,2]
[361242343,1747387842288,-400.0,0.00013698,2]
[361242345,1747387842298,-400.0,0.00013698,2]
[361242347,1747387842306,-400.0,0.00013698,2]
[361242349,1747387842315,-400.0,0.00013698,2]
[361242351,1747387842324,-450.0,0.00013698,2]
[361242353,1747387842333,-400.0,0.00013698,2]
[361242355,1747387842342,-450.0,0.00013698,2]
[361242357,1747387842351,-400.0,0.00013698,2]
[361242359,1747387842360,-506.76845898,0.00013698,2]
[361242361,1747387842370,-400.0,0.00013698,2]
[361242363,1747387842380,-400.0,0.00013698,2]
[361242365,1747387842388,-400.0,0.00013698,2]
[361242367,1747387842397,-411.121553,0.00013698,2]
[361242369,1747387842406,-400.0,0.00013698,2]
[361242371,1747387842415,-400.0,0.00013698,2]
[361242373,1747387842424,-450.0,0.00013698,2]
[361242375,1747387842433,-400.0,0.00013698,2]
[361242377,1747387842442,-400.0,0.00013698,2]
[361242379,1747387842451,-539.52681876,0.00013698,2]
[361242381,1747387842460,-400.0,0.00013698,2]
[361242383,1747387842469,-400.0,0.00013698,2]
[361242385,1747387842479,-400.0,0.00013698,2]
[361242387,1747387842487,-400.0,0.00013698,2]
[361242389,1747387842497,-400.0,0.00013698,2]
[361242391,1747387842506,-400.0,0.00013698,2]
[361242393,1747387842515,-400.0,0.00013698,2]
[361242395,1747387842524,-400.0,0.00013698,2]
[361242397,1747387842533,-400.0,0.00013698,2]
[361242399,1747387842542,-400.0,0.00013698,2]
[361242401,1747387842550,-400.0,0.00013698,2]
[361242403,1747387842559,-400.0,0.00013698,2]
[361242405,1747387842569,-400.0,0.00013698,2]
[361242408,1747387842580,-400.0,0.00013698,2]
[361242410,1747387842590,-400.0,0.00013698,2]
[361242412,1747387842599,-400.0,0.00013698,2]
[361242414,1747387842608,-400.0,0.00013698,2]
[361242416,1747387842619,-400.0,0.00013698,2]
[361242418,1747387842628,-400.0,0.00013698,2]
[361242420,1747387842637,-400.0,0.00013698,2]
[361242422,1747387842647,-400.0,0.00013698,2]
[361242424,1747387842656,-450.0,0.00013698,2]
[361242426,1747387842665,-400.0,0.00013698,2]
[361242428,1747387842675,-503.51149385,0.00013698,2]
[361242430,1747387842685,-450.0,0.00013698,2]
[361242432,1747387842695,-408.86864681,0.00013698,2]
[361242434,1747387842704,-401.25700329,0.00013698,2]
[361242436,1747387842714,-447.99994809,0.00013698,2]
[361242438,1747387842723,-400.0,0.00013698,2]
[361242440,1747387842733,-450.0,0.00013698,2]
[361242442,1747387842742,-400.0,0.00013698,2]
[361242444,1747387842750,-400.0,0.00013698,2]
[361242446,1747387842760,-400.0,0.00013698,2]
[361242448,1747387842771,-400.0,0.00013698,2]
[361242450,1747387842782,-998.85,0.00013698,2]
[361242452,1747387842792,-400.0,0.00013698,2]
[361242454,1747387842801,-400.0,0.00013698,2]
[361242456,1747387842811,-400.0,0.00013698,2]
[361242458,1747387842822,-400.0,0.00013698,2]
[361242460,1747387842831,-450.0,0.00013698,2]
[361242462,1747387842841,-400.0,0.00013698,2]
[361242491,1747387843060,-400.0,0.00013698,2]
[361242493,1747387843070,-400.0,0.00013698,2]
[361242495,1747387843079,-400.0,0.00013698,2]
[361242497,1747387843088,-402.75093053,0.00013698,2]
[361242499,1747387843098,-400.0,0.00013698,2]
[361242501,1747387843107,-400.0,0.00013698,2]
[361242503,1747387843116,-400.0,0.00013698,2]
[361242505,1747387843126,-450.0,0.00013698,2]
[361242506,1747387843135,-403.55035648,0.00013698,2]
[361242508,1747387843144,-400.0,0.00013698,2]
[361242510,1747387843153,-400.0,0.00013698,2]
[361242512,1747387843162,-243.78682931,0.00013698,2]
[361242514,1747387843172,-400.0,0.00013698,2]
[361242517,1747387843181,-400.0,0.00013698,2]
[361242519,1747387843190,-400.0,0.00013698,2]
[361242521,1747387843199,-413.52627347,0.00013698,2]
[361242525,1747387843207,-400.0,0.00013698,2]
[361242527,1747387843216,-500.0,0.00013698,2]
[361242528,1747387843225,-400.0,0.00013698,2]
[361242531,1747387843234,-400.0,0.00013698,2]
[361242533,1747387843243,-413.43402272,0.00013698,2]
[361242534,1747387843252,-414.06937325,0.00013698,2]
[361242535,1747387843261,-400.0,0.00013698,2]
[361242538,1747387843270,-363.97759682,0.00013698,2]
[361242541,1747387843279,-402.21731983,0.00013698,2]
[361242543,1747387843289,-400.0,0.00013698,2]
[361242544,1747387843298,-411.92362872,0.00013698,2]
[361242545,1747387843307,-450.0,0.00013698,2]
[361242547,1747387843316,-450.0,0.00013698,2]
[361242548,1747387843326,-505.94526881,0.00013698,2]
[361242550,1747387843335,-400.0,0.00013698,2]
[361242551,1747387843344,-35.28350774,0.00013698,2]
[361242553,1747387843362,-398.09362604,0.00013698,2]
[361242556,1747387843372,-450.0,0.00013698,2]
[361242558,1747387843382,-400.0,0.00013698,2]
[361242560,1747387843391,-220.67831146,0.00013698,2]
[361242568,1747387843724,-0.00118277,0.00013698,2]
[361242655,1747388226378,-255.58225956,0.00011278,2]
[361242656,1747388229003,-249.60773957,0.00011278,2]
[361242657,1747388231235,-229.0914388,0.00011278,2]
[361242658,1747388233949,-321.34927072,0.00011278,2]
[361242659,1747388235451,-190.84214183,0.00011278,2]
[361242660,1747388237648,-155.48722296,0.00011278,2]
[361242661,1747388240423,-565.99779108,0.00011278,2]
[361242662,1747388241886,-230.28736801,0.00011278,2]
[361242663,1747388245276,-153.54201891,0.00011278,2]
[361242664,1747388249316,-300.0,0.00011278,2]
[361242665,1747388251556,-169.29430149,0.00011278,2]
[361242666,1747388253098,-380.70569851,0.00011278,2]
[361242667,1747388254643,-285.90165442,0.00011278,2]
[361242668,1747388257310,-277.58125823,0.00011278,2]
[361242669,1747388258948,-200.06862657,0.00011278,2]
[361242670,1747388260469,-230.23822979,0.00011278,2]
[361242671,1747388263218,-269.76177021,0.00011278,2]
[361242672,1747388264861,-423.78892841,0.00011278,2]
[361242673,1747388268011,-110.87228093,0.00011278,2]
[361242675,1747388473709,-243.10366515,0.00011165,2]
[361242676,1747388475302,-195.21107159,0.00011165,2]
[361242677,1747388476829,-300.0,0.00011165,2]
[361242678,1747388480127,-210.60010565,0.00011165,2]
[361242679,1747388481744,-401.53356265,0.00011165,2]
[361242680,1747388484312,-343.0720146,0.00011165,2]
[361242681,1747388488892,-449.9285724,0.00011165,2]
[361242682,1747388491298,-221.07811593,0.00011165,2]
[361242683,1747388659289,-208.91177213,0.00011053,2]
[361242684,1747388713658,-4717.0,0.00011053,2]
[361242685,1747388811742,605.776808,0.00027397,120]
[361242686,1747388847547,5000.0,0.00011,14]
[361242687,1747388905487,506.91305745,0.000136,30]
[361242730,1747389031857,-2808.49601048,0.00011277,14]
[361242741,1747389031964,-2191.50398952,0.00011277,14]
[361242742,1747389031975,-300.0,0.0001139,2]
[361242743,1747389031984,-300.0,0.00011391,2]
[361242744,1747389031994,-300.0,0.00011391,2]
[361242745,1747389032003,-591.0,0.00011391,2]
[361242746,1747389032012,-1290.2260092,0.00011392,2]
[361242747,1747389032022,-463.1576437,0.00011392,2]
[361242748,1747389032031,-2090.09153474,0.00011392,2]
[361242749,1747389032040,-284.3546399,0.00011392,2]
[361242750,1747389032049,-296.9021006,0.00011392,2]
[361242752,1747389032058,-577.15,0.00012329,2]
[361242754,1747389032068,-218.62,0.00012329,2]
[361242756,1747389032077,-182.18,0.00012329,2]
[361242758,1747389032087,-151.82,0.00012329,2]
[361242760,1747389032096,-759.13,0.00012329,2]
[361242762,1747389032106,-2346.32023743,0.00012329,2]
[361242764,1747389032117,-4199.499995,0.00012329,2]
[361242766,1747389032128,-359.3437208,0.00012329,2]
[361242965,1747389037901,-5000.0,0.00012205,2]
[361242967,1747389037911,-5613.28802075,0.00012329,2]
[361242969,1747389037920,-8238.9499086,0.00012395,2]
[361242971,1747389037930,-420.0,0.00012512,2]
[361242973,1747389037939,-207.4,0.00013236,2]
[361242975,1747389037948,-3414.00956396,0.00013598,2]
[361242976,1747389037958,-151.0,0.000136,2]
[361242978,1747389037968,-3392.16684551,0.00013631,2]
[361242980,1747389037977,-3414.00956395,0.00013632,2]
[361242982,1747389037987,-500.0,0.00013651,2]
[361242983,1747389037996,-609.22124445,0.00013651,2]
[361242984,1747389038007,-187.29415526,0.00013651,2]
[361242985,1747389038017,-500.0,0.00013651,2]
[361242987,1747389038027,-500.0,0.00013651,2]
[361242988,1747389038037,-370.8794147,0.00013651,2]
[361242990,1747389038047,-434.76380619,0.00013651,2]
[361242991,1747389038056,-12631.88158148,0.00013652,2]
[361242993,1747389038066,-160.0,0.00013652,2]
[361242994,1747389038077,-160.0,0.00013652,2]
[361242995,1747389038087,-160.0,0.00013652,2]
[361242996,1747389038096,-422.39640784,0.00013652,2]
[361242997,1747389038106,-160.0,0.00013655,2]
[361242998,1747389038116,-3414.00956395,0.00013667,2]
[361242999,1747389038127,-503.87716718,0.00013673,2]
[361243000,1747389038137,-501.70012264,0.00013673,2]
[361243001,1747389038147,-372.48068192,0.00013673,2]
[361243002,1747389038157,-500.0,0.00013673,2]
[361243003,1747389038167,-480.64549773,0.00013673,2]
[361243004,1747389038177,-500.0,0.00013673,2]
[361243005,1747389038188,-520.16409903,0.00013673,2]
[361243006,1747389038198,-500.0,0.00013673,2]
[361243007,1747389038208,-500.0,0.00013673,2]
[361243008,1747389038218,-500.0,0.00013673,2]
[361243009,1747389038227,-518.43483232,0.00013673,2]
[361243010,1747389038237,-500.0,0.00013673,2]
[361243011,1747389038249,-500.0,0.00013673,2]
[361243012,1747389038258,-500.0,0.00013673,2]
[361243013,1747389038268,-500.0,0.00013673,2]